[Event "2nd FIDE WCC Rapid G10"]
[Site "Minsk"]
[Date "2018.06.23"]
[Round "9"]
[White "Matveeva, Kseniia"]
[Black "Nguyen, Binh Vy"]
[Result "0-1"]
[ECO "A43"]
[WhiteElo "1359"]
[BlackElo "1216"]
[Annotator "NA RC"]
[PlyCount "172"]
[EventDate "2018.06.22"]
[EventType "rapid"]
[EventCountry "BLR"]
[SourceTitle "playchess.com"]
[Source "ChessBase"]
[SourceQuality "1"]
[TimeControl "600+5"]

1. d4 {[%emt 0:00:00]} c5 {[%emt 0:00:01]} 2. Nf3 {[%emt 0:00:02]} cxd4 {[%emt 0:00:02]} 3. Nxd4 {[%emt 0:00:02]} e5 {[%emt 0:00:01]} 4. Nf3 {[%emt 0:00:01]} Nc6 {[%emt 0:00:01]} 5. e4 {[%emt 0:00:02]} Nf6 {[%emt 0:00:01]} 6. Nc3 {[%emt 0:00:01]} Be7 {[%emt 0:00:02]} 7. Bd3 {[%emt 0:00:05]} O-O {[%emt 0:00:02]} 8. O-O {[%emt 0:00:02]} d6 {[%emt 0:00:11]} 9. Bg5 {[%emt 0:00:20]} Bg4 {[%emt 0:00:03]} 10. Be2 {[%emt 0:00:04]} h6 {[%emt 0:00:05]} 11. Bh4 {[%emt 0:00:02]} Rc8 {[%emt 0:00:43]} 12. Bxf6 {[%emt 0:00:11]} Bxf6 {[%emt 0:00:02]} 13. Nd5 {[%emt 0:00:02]} Bxf3 {[%emt 0:00:06]} 14. Bxf3 {[%emt 0:00:01]} Nd4 {[%emt 0:00:02]} 15. c3 {[%emt 0:00:05]} Nxf3+ {[%emt 0:00:01]} 16. Qxf3 {[%emt 0:00:02]} Be7 {[%emt 0:00:06]} 17. Rad1 {[%emt 0:00:01]} Rc6 {[%emt 0:00:14]} 18. b3 {[%emt 0:00:13]} b5 {[%emt 0:00:06]} 19. Rc1 {[%emt 0:00:07]} Bg5 {[%emt 0:00:08]} 20. Rc2 {[%emt 0:00:06]} Qd7 {[%emt 0:00:11]} 21. Qg3 {[%emt 0:00:10]} Rfc8 {[%emt 0:00:04]} 22. Qd3 {[%emt 0:00:35]} Rc5 {[%emt 0:00:40]} 23. Rd1 {[%emt 0:00:22]} Qc6 {[%emt 0:00:31]} 24. Nb4 {[%emt 0:00:08]} Qb7 {[%emt 0:00:14]} 25. f3 {[%emt 0:00:24]} Rd8 {[%emt 0:00:19]} 26. Nd5 {[%emt 0:00:12]} a6 {[%emt 0:00:23]} 27. Nb4 {[%emt 0:00:20]} Qb6 {[%emt 0:00:34]} 28. Kh1 {[%emt 0:00:06]} Qb7 {[%emt 0:00:24]} 29. Nd5 {[%emt 0:00:44]} a5 {[%emt 0:01:05]} 30. Rb2 {[%emt 0:00:17]} Qc6 {[%emt 0:00:50]} 31. b4 {[%emt 0:00:27]} axb4 {[%emt 0:00:02]} 32. Nxb4 {[%emt 0:00:14]} Qc8 {[%emt 0:00:17]} 33. Nd5 {[%emt 0:00:03]} Qc6 {[%emt 0:00:03]} 34. Rdb1 {[%emt 0:00:16]} Rb8 {[%emt 0:00:05]} 35. a4 {[%emt 0:00:11]} Bd8 {[%emt 0:00:28]} 36. axb5 {[%emt 0:00:06]} Qc8 {[%emt 0:00:06]} 37. b6 {[%emt 0:00:10]} Rb7 {[%emt 0:00:04]} 38. Rb3 {[%emt 0:00:58]} Rc6 {[%emt 0:00:12]} 39. Ra3 {[%emt 0:00:58]} Bxb6 {[%emt 0:00:14]} 40. Ne7+ {[%emt 0:00:07]} Rxe7 {[%emt 0:00:05]} 41. Rab3 {[%emt 0:00:24]} Bc7 {[%emt 0:00:50]} 42. Qd5 {[%emt 0:00:13]} Rc5 {[%emt 0:00:05]} 43. Qd3 {[%emt 0:00:08]} Qd7 {[%emt 0:00:01]} 44. Rb7 {[%emt 0:00:04]} Qc6 {[%emt 0:00:05]} 45. R7b3 {[%emt 0:00:14]} Ba5 {[%emt 0:00:10]} 46. Rb8+ {[%emt 0:00:29]} Kh7 {[%emt 0:00:03]} 47. f4 {[%emt 0:00:06]} Rxc3 {[%emt 0:00:04]} 48. Qf1 {[%emt 0:00:05]} Qxe4 {[%emt 0:00:09]} 49. fxe5 {[%emt 0:00:04]} Qxe5 {[%emt 0:00:06]} 50. R8b7 {[%emt 0:00:25]} Rxb7 {[%emt 0:00:11]} 51. Rxb7 {[%emt 0:00:01]} f6 {[%emt 0:00:02]} 52. Qb1+ {[%emt 0:00:14]} f5 {[%emt 0:00:24]} 53. Rf7 {[%emt 0:00:21]} Rc5 {[%emt 0:00:06]} 54. Rb7 {[%emt 0:00:45]} Qe1+ {[%emt 0:00:05]} 55. Qxe1 {[%emt 0:00:01]} Bxe1 {[%emt 0:00:01]} 56. Rb6 {[%emt 0:00:02]} Rd5 {[%emt 0:00:03]} 57. Rb1 {[%emt 0:00:03]} Bh4 {[%emt 0:00:01]} 58. Rf1 {[%emt 0:00:02]} Bf6 {[%emt 0:00:03]} 59. g3 {[%emt 0:00:02]} g5 {[%emt 0:00:00]} 60. Kg2 {[%emt 0:00:01]} Kg6 {[%emt 0:00:01]} 61. Rb1 {[%emt 0:00:05]} f4 {[%emt 0:00:02]} 62. gxf4 {[%emt 0:00:01]} gxf4 {[%emt 0:00:02]} 63. Kf3 {[%emt 0:00:01]} Bg5 {[%emt 0:00:01]} 64. Rg1 {[%emt 0:00:03]} Kf5 {[%emt 0:00:00]} 65. Ra1 {[%emt 0:00:05]} Rd3+ {[%emt 0:00:01]} 66. Ke2 {[%emt 0:00:01]} Rd4 {[%emt 0:00:06]} 67. Ra5+ {[%emt 0:00:02]} d5 {[%emt 0:00:01]} 68. Kf3 {[%emt 0:00:03]} Ke5 {[%emt 0:00:04]} 69. Ke2 {[%emt 0:00:02]} Ke4 {[%emt 0:00:01]} 70. Kf2 {[%emt 0:00:01]} Rd2+ {[%emt 0:00:04]} 71. Ke1 {[%emt 0:00:02]} d4 {[%emt 0:00:01]} 72. Ra8 {[%emt 0:00:03]} Rxh2 {[%emt 0:00:17]} 73. Re8+ {[%emt 0:00:03]} Kd3 {[%emt 0:00:02]} 74. Rf8 {[%emt 0:00:03]} Bh4+ {[%emt 0:00:05]} 75. Kf1 {[%emt 0:00:01]} Rf2+ {[%emt 0:00:02]} 76. Kg1 {[%emt 0:00:01]} Ke3 {[%emt 0:00:02]} 77. Re8+ {[%emt 0:00:01]} Kf3 {[%emt 0:00:00]} 78. Re5 {[%emt 0:00:03]} d3 {[%emt 0:00:08]} 79. Rd5 {[%emt 0:00:02]} d2 {[%emt 0:00:03]} 80. Rd3+ {[%emt 0:00:03]} Ke4 {[%emt 0:00:02]} 81. Rd7 {[%emt 0:00:02]} Re2 {[%emt 0:00:03]} 82. Rxd2 {[%emt 0:00:11]} Rxd2 {[%emt 0:00:02]} 83. Kf1 {[%emt 0:00:01]} Kf3 {[%emt 0:00:04]} 84. Kg1 {[%emt 0:00:01]} Rc2 {[%emt 0:00:05]} 85. Kh1 {[%emt 0:00:01]} Kg3 {[%emt 0:00:01]} 86. Kg1 {[%emt 0:00:01]} Rc1# 0-1